bitfinex-derivatives/quotes_BNBF0:USTF0_20250710
["timestamp","ask_amount","ask_price","bid_price","bid_amount"]
[1752115380731,0.25954654,670.63,670.1,1.52349401]
[1752115380929,0.25954654,670.63,670.11,1.52349401]
[1752115381136,0.25954654,670.63,670.12,1.52349401]
[1752115381336,0.25954654,670.63,669.95,2.331]
[1752115381536,0.25954654,670.63,669.96,1.52342283]
[1752115381734,0.25954654,670.63,669.97,1.52342283]
[1752115381934,0.25954654,670.63,669.98,1.52342283]
[1752115382230,0.25954654,670.63,669.99,1.52342283]
[1752115382433,0.25954654,670.63,670.0,1.52342283]
[1752115382633,0.25954654,670.63,670.01,1.52342283]
[1752115382833,0.25954654,670.63,670.02,1.52342283]
[1752115383035,0.25954654,670.63,669.95,2.331]
[1752115383036,0.25954654,670.63,670.03,1.52342283]
[1752115383230,0.25954654,670.63,670.04,1.52342283]
[1752115383435,0.25954654,670.63,670.05,1.52342283]
[1752115383633,0.25954654,670.63,670.06,1.52342283]
[1752115383836,0.25954654,670.63,670.07,1.52342283]
[1752115384134,0.25954654,670.63,670.08,1.52342283]
[1752115384333,0.25954654,670.63,670.09,1.52342283]
[1752115384534,0.25954654,670.63,670.1,1.52342283]
[1752115384833,0.25954654,670.63,670.11,1.52342283]
[1752115385031,0.25954654,670.63,670.12,1.52342283]
[1752115385235,0.25954654,670.63,669.95,2.331]
[1752115385435,0.25954654,670.63,669.96,1.52335258]
[1752115385634,0.25954654,670.63,669.97,1.52335258]
[1752115385835,0.25954654,670.63,669.98,1.52335258]
[1752115386034,0.25954654,670.63,669.99,1.52335258]
[1752115386234,0.25954654,670.63,670.0,1.52335258]
[1752115386535,0.25954654,670.63,670.01,1.52335258]
[1752115386734,0.25954654,670.63,670.02,1.52335258]
[1752115386933,0.25954654,670.63,670.03,1.52335258]
[1752115387134,0.25954654,670.63,670.04,1.52335258]
[1752115387435,0.25954654,670.63,670.05,1.52335258]
[1752115387632,0.25954654,670.63,670.06,1.52335258]
[1752115387931,0.25954654,670.63,670.07,1.52335258]
[1752115388232,0.25954654,670.63,670.08,1.52335258]
[1752115388435,0.25954654,670.63,670.09,1.52335258]
[1752115388736,0.25954654,670.63,670.1,1.52335258]
[1752115388936,0.25954654,670.63,670.11,1.52335258]
[1752115389137,0.25954654,670.63,670.12,1.52335258]
[1752115389337,0.25954654,670.63,669.95,2.331]
[1752115389535,0.25954654,670.63,669.96,1.52220375]
[1752115389736,0.25954654,670.63,669.97,1.52220375]
[1752115389938,0.25954654,670.63,669.98,1.52220375]
[1752115390139,0.25954654,670.63,669.99,1.52220375]
[1752115390337,0.25954654,670.63,670.0,1.52220375]
[1752115390536,0.25954654,670.63,670.01,1.52220375]
[1752115390840,0.25954654,670.63,670.02,1.52220375]
[1752115391040,0.25954654,670.63,670.03,1.52220375]
[1752115391240,0.25954654,670.63,670.04,1.52220375]
[1752115391437,0.25954654,670.63,670.05,1.52220375]
[1752115391740,0.25954654,670.63,670.06,1.52220375]
[1752115391936,0.25954654,670.63,670.07,1.52220375]
[1752115392236,0.25954654,670.63,670.08,1.52220375]
[1752115392537,0.25954654,670.63,670.09,1.52220375]
[1752115392740,0.25954654,670.63,670.1,1.52220375]
[1752115392940,0.25954654,670.63,670.11,1.52220375]
[1752115393142,0.25954654,670.63,670.12,1.52220375]
[1752115393341,0.25954654,670.63,669.95,2.331]
[1752115393536,0.25954654,670.63,669.96,1.52223659]
[1752115393737,0.25954654,670.63,669.97,1.52223659]
[1752115394040,0.25954654,670.63,669.98,1.52223659]
[1752115394239,0.25954654,670.63,669.99,1.52223659]
[1752115394441,0.25954654,670.63,670.0,1.52223659]
[1752115394640,0.25954654,670.63,670.01,1.52223659]
[1752115394836,0.25954654,670.63,670.02,1.52223659]
[1752115395041,0.25954654,670.63,670.03,1.52223659]
[1752115395238,0.25954654,670.63,670.04,1.52223659]
[1752115395442,3.61126322,670.63,670.05,1.52223659]
[1752115395739,3.61126322,670.63,670.06,1.52223659]
[1752115395938,3.35171668,670.61,670.07,1.52223659]
[1752115396138,3.35171668,670.61,670.08,1.52223659]
[1752115396439,3.35171668,670.61,670.09,1.52223659]
[1752115396636,3.35171668,670.61,670.1,1.52223659]
[1752115396842,3.35171668,670.62,670.11,1.52223659]
[1752115397042,3.35171668,670.62,670.12,1.52223659]
[1752115397241,3.35171668,670.62,669.95,2.331]
[1752115397537,3.35171668,670.61,669.96,1.52241257]
[1752115397737,3.35171668,670.61,669.97,1.52241257]
[1752115397941,3.35171668,670.61,669.98,1.52241257]
[1752115398141,3.35171668,670.61,669.99,1.52241257]
[1752115398442,3.35171668,670.61,670.0,1.52241257]
[1752115398643,3.35171668,670.61,670.01,1.52241257]
[1752115398839,3.35171668,670.61,670.02,1.52241257]
[1752115399038,3.35171668,670.61,670.03,1.52241257]
[1752115399241,3.35171668,670.61,670.04,1.52241257]
[1752115399442,3.35171668,670.61,670.05,1.52241257]
[1752115399639,3.35171668,670.61,670.06,1.52241257]
[1752115399839,3.35171668,670.61,670.07,1.52241257]
[1752115400142,3.35171668,670.61,670.08,1.52241257]
[1752115400339,3.35171668,670.61,670.09,1.52241257]
[1752115400546,3.35171668,670.62,670.1,1.52241257]
[1752115400745,3.35171668,670.62,670.11,1.52241257]
[1752115400944,3.35171668,670.62,670.12,1.52241257]
[1752115401141,3.35171668,670.62,669.95,2.331]
[1752115401346,3.35171668,670.62,669.96,1.5225939]
[1752115401541,3.35171668,670.62,669.97,1.5225939]
[1752115401741,3.61126322,670.63,669.98,1.5225939]
[1752115401944,0.25954654,670.63,669.99,1.5225939]
[1752115402142,0.25954654,670.63,670.0,1.5225939]
[1752115402340,0.25954654,670.63,670.01,1.5225939]
[1752115402645,3.61126322,670.63,670.02,1.5225939]
[1752115402844,3.61126322,670.63,670.03,1.5225939]
[1752115403046,3.61126322,670.63,670.04,1.5225939]
[1752115403342,3.61126322,670.63,670.05,1.5225939]
[1752115403541,3.61126322,670.63,670.06,1.5225939]
[1752115403746,3.61126322,670.63,670.07,1.5225939]
[1752115403948,3.61126322,670.63,670.08,1.5225939]
[1752115404142,0.25954654,670.63,670.09,1.5225939]
[1752115404346,0.25954654,670.63,670.1,1.5225939]
[1752115404547,0.25954654,670.63,670.11,1.5225939]
[1752115404848,0.25954654,670.63,670.12,1.5225939]
[1752115405147,0.25954654,670.63,670.13,1.5225939]
[1752115405443,0.25954654,670.63,669.95,2.331]
[1752115405644,3.35171668,670.62,669.96,1.5229577]
[1752115405943,3.35171668,670.62,669.97,1.5229577]
[1752115406143,3.35171668,670.62,669.98,1.5229577]
[1752115406346,3.35171668,670.62,669.99,1.5229577]
[1752115406643,3.35171668,670.62,670.0,1.5229577]
[1752115406847,3.35171668,670.62,670.01,1.5229577]
[1752115407046,3.35171668,670.62,670.02,1.5229577]
[1752115407344,3.35171668,670.61,670.03,1.5229577]
[1752115407548,3.35171668,670.61,670.04,1.5229577]
[1752115407847,3.35171668,670.61,670.05,1.5229577]
[1752115408142,0.25954654,670.63,669.95,2.331]
[1752115408143,0.25954654,670.63,670.06,1.5229577]
[1752115408342,0.25954654,670.63,670.07,1.5229577]
[1752115408542,0.25954654,670.63,670.08,1.5229577]
[1752115408743,0.25954654,670.63,670.09,1.5229577]
[1752115408947,0.25954654,670.63,670.1,1.5229577]
[1752115409148,0.25954654,670.63,670.11,1.5229577]
[1752115409350,0.25954654,670.63,670.12,1.5229577]
[1752115409549,0.25954654,670.63,669.95,2.331]
[1752115409846,0.25954654,670.63,669.96,1.52325065]
[1752115410144,0.25954654,670.63,669.97,1.52325065]
[1752115410343,0.25954654,670.63,669.98,1.52325065]
[1752115410546,0.25954654,670.63,669.99,1.52325065]
[1752115410744,0.25954654,670.63,669.95,2.331]
[1752115410745,0.25954654,670.63,670.0,1.52325065]
[1752115410948,0.25954654,670.63,669.95,2.331]
[1752115410949,0.25954654,670.63,670.01,1.52325065]
[1752115411147,0.25954654,670.63,670.02,1.52325065]
[1752115411344,0.25954654,670.63,670.03,1.52325065]
[1752115411545,0.25954654,670.63,670.04,1.52325065]
[1752115411845,0.25954654,670.63,670.05,1.52325065]
[1752115412045,0.25954654,670.63,670.06,1.52325065]
[1752115412245,0.25954654,670.63,670.07,1.52325065]
[1752115412445,0.25954654,670.63,670.08,1.52325065]
[1752115412745,0.25954654,670.63,670.09,1.52325065]
[1752115412945,0.25954654,670.63,670.1,1.52325065]
[1752115413147,0.25954654,670.63,669.95,2.331]
[1752115413345,0.25954654,670.63,669.96,1.52346071]
[1752115413544,0.25954654,670.63,669.97,1.52346071]
[1752115413749,0.25954654,670.63,669.98,1.52346071]
[1752115413948,0.25954654,670.63,669.99,1.52346071]
[1752115414143,0.25954654,670.63,669.95,2.331]
[1752115414144,0.25954654,670.63,670.0,1.52346071]
[1752115414447,0.25954654,670.63,670.01,1.52346071]
[1752115414647,0.25954654,670.63,670.02,1.52346071]
[1752115414844,0.25954654,670.63,670.03,1.52346071]
[1752115415046,0.25954654,670.63,670.04,1.52346071]
[1752115415249,0.25954654,670.63,670.05,1.52346071]
[1752115415550,0.25954654,670.63,670.06,1.52346071]
[1752115415747,0.25954654,670.63,670.07,1.52346071]
[1752115416047,0.25954654,670.63,669.95,2.331]
[1752115416048,0.25954654,670.63,670.08,1.52346071]
[1752115416349,0.25954654,670.63,670.09,1.52346071]
[1752115416548,3.35171668,670.62,670.1,1.52346071]
[1752115416748,3.35171668,670.62,670.11,1.52346071]
[1752115416947,3.61126322,670.63,669.95,2.331]
[1752115417151,3.61126322,670.63,669.96,1.52412787]
[1752115417350,3.35171668,670.62,669.97,1.52412787]
[1752115417546,3.35171668,670.62,669.98,1.52412787]
[1752115417748,3.35171668,670.62,669.99,1.52412787]
[1752115417947,3.35171668,670.61,670.0,1.52412787]
[1752115418246,3.35171668,670.61,670.01,1.52412787]
[1752115418449,3.35171668,670.61,670.02,1.52412787]
[1752115418747,3.35171668,670.61,670.03,1.52412787]
[1752115419051,3.35171668,670.61,670.04,1.52412787]
[1752115419251,3.35171668,670.61,670.05,1.52412787]
[1752115419448,3.35171668,670.61,670.06,1.52412787]
[1752115419748,3.35171668,670.61,669.95,2.331]
[1752115419949,0.25954654,670.63,669.95,2.331]
[1752115419950,3.35171668,670.52,669.96,1.52442735]
[1752115420149,3.35171668,670.52,669.97,1.52442735]
[1752115420349,3.35171668,670.54,669.98,1.52442735]
[1752115420546,3.35171668,670.54,669.99,1.52442735]
[1752115420750,3.35171668,670.54,670.0,1.52442735]
[1752115421051,3.35171668,670.54,670.01,1.52442735]
[1752115421248,3.35171668,670.54,669.95,2.331]
[1752115421451,3.35171668,670.53,669.96,1.52358718]
[1752115421651,3.35171668,670.53,669.97,1.52358718]
[1752115421850,3.35171668,670.53,669.98,1.52358718]
[1752115422048,3.35171668,670.53,669.99,1.52358718]
[1752115422252,3.35171668,670.53,669.95,2.331]
[1752115422450,3.35171668,670.53,669.96,1.52327883]
[1752115422750,3.35171668,670.51,669.97,1.52327883]
[1752115422951,3.35171668,670.51,669.95,2.331]
[1752115423149,3.35171668,670.51,669.96,1.52345651]
[1752115423453,3.35171668,670.47,669.63,1.67005189]
[1752115423653,3.35171668,670.47,669.64,1.52350689]
[1752115423850,3.35171668,670.47,669.65,1.52350689]
[1752115424048,3.35171668,670.47,669.66,1.52350689]
[1752115424248,3.35171668,670.48,669.67,1.52350689]
[1752115424447,3.35171668,670.48,669.68,1.52350689]
[1752115424650,3.35171668,670.48,669.69,1.52350689]
[1752115424854,3.35171668,670.48,669.7,1.52350689]
[1752115425150,3.35171668,670.49,669.71,1.52350689]
[1752115425350,3.35171668,670.49,669.72,1.52350689]
[1752115425549,3.35171668,670.49,669.73,1.52350689]
[1752115425852,3.35171668,670.49,669.74,1.52350689]
[1752115426050,3.35171668,670.49,669.75,1.52350689]
[1752115426253,3.35171668,670.5,669.76,1.52350689]
[1752115426453,3.35171668,670.5,669.77,1.52350689]
[1752115426652,3.35171668,670.5,669.78,1.52350689]
[1752115426849,3.35171668,670.5,669.79,1.52350689]
[1752115427054,3.35171668,670.49,669.8,1.52350689]
[1752115427354,3.35171668,670.5,669.81,1.52350689]
[1752115427554,3.35171668,670.5,669.82,1.52350689]
[1752115427753,3.35171668,670.5,669.83,1.52350689]
[1752115427951,3.35171668,670.5,669.84,1.52350689]
[1752115428251,3.35171668,670.5,669.85,1.52350689]
[1752115428448,3.35171668,670.5,669.78,2.541]
[1752115428649,3.35171668,670.5,669.79,1.52161551]
[1752115428862,3.35171668,670.5,669.8,1.52161551]
[1752115429050,3.35171668,670.5,669.81,1.52161551]
[1752115429256,3.35171668,670.51,669.82,1.52161551]
[1752115429456,3.35171668,670.51,669.83,1.52161551]
[1752115429659,3.35171668,670.51,669.84,1.52161551]
[1752115429857,3.35171668,670.51,669.78,2.541]
[1752115430057,3.35171668,670.51,669.79,1.52133009]
[1752115430254,3.35171668,670.52,669.8,1.52133009]
[1752115430459,3.35171668,670.46,669.81,1.52133009]
[1752115430656,3.35171668,670.46,669.82,1.52133009]
[1752115430956,3.35171668,670.46,669.83,1.52133009]
[1752115431159,3.35171668,670.46,669.78,2.541]
[1752115431360,3.35171668,670.46,669.79,1.52087425]
[1752115431560,3.35171668,670.46,669.8,1.52087425]
[1752115431755,3.35171668,670.46,669.81,1.52087425]
[1752115431959,3.35171668,670.46,669.82,1.52087425]
[1752115432256,3.35171668,670.47,669.78,2.541]
[1752115432455,3.35171668,670.47,669.79,1.52066388]
[1752115432661,3.35171668,670.54,669.8,1.52066388]
[1752115432859,3.35171668,670.54,669.81,1.52066388]
[1752115433059,3.35171668,670.54,669.82,1.52066388]
[1752115433264,3.35171668,670.53,669.78,2.541]
[1752115433463,3.35171668,670.53,669.79,1.52044332]
[1752115433666,3.35171668,670.53,669.8,1.52044332]
[1752115433872,3.35171668,670.53,669.81,1.52044332]
[1752115434069,3.35171668,670.52,669.82,1.52044332]
[1752115434369,3.35171668,670.53,669.78,2.541]
[1752115434574,3.35171668,670.53,669.79,1.52027066]
[1752115434774,3.35171668,670.53,669.8,1.52027066]
[1752115434973,3.35171668,670.53,669.81,1.52027066]
[1752115435170,3.35171668,670.53,669.82,1.52027066]
[1752115435372,3.35171668,670.54,669.78,2.541]
[1752115435572,3.35171668,670.54,669.79,1.52011426]
[1752115435772,3.35171668,670.54,669.8,1.52011426]
[1752115435969,3.35171668,670.54,669.81,1.52011426]
[1752115436270,3.35171668,670.55,669.82,1.52011426]
[1752115436573,3.35171668,670.55,669.78,2.541]
[1752115436773,3.35171668,670.55,669.79,1.51997299]
[1752115436973,3.35171668,670.55,669.78,2.541]
[1752115436974,3.35171668,670.55,669.8,1.51997299]
[1752115437169,3.35171668,670.55,669.81,1.51997299]
[1752115437374,3.35171668,670.55,669.82,1.51997299]
[1752115437570,3.35171668,670.55,669.78,2.541]
[1752115437871,3.35171668,670.55,669.79,1.51984529]
[1752115438076,3.35171668,670.55,669.8,1.51984529]
[1752115438276,0.25966371,670.37,669.81,1.51984529]
[1752115438476,0.25966371,670.37,669.82,1.51973048]
[1752115438673,0.25966371,670.37,669.78,2.541]
[1752115438875,0.25966371,670.37,669.79,1.51973048]
[1752115439178,0.25966371,670.37,669.8,1.51973048]
[1752115439378,0.25966371,670.37,669.81,1.51973048]
[1752115439678,0.25966371,670.37,669.82,1.51973048]
[1752115439974,0.25966371,670.37,669.78,2.541]
[1752115440174,0.25966371,670.37,669.79,1.51962772]
[1752115440374,0.25966371,670.37,669.8,1.51962772]
[1752115440574,0.25966371,670.37,669.81,1.51962772]
[1752115440777,0.25966371,670.37,669.78,2.541]
[1752115440778,0.25966371,670.37,669.82,1.51962772]
[1752115440978,0.25966371,670.37,669.83,1.51962772]
[1752115441178,0.25966371,670.37,669.78,2.541]
[1752115441379,0.25966371,670.37,669.79,1.51952006]
[1752115441579,0.25966371,670.37,669.8,1.51952006]
[1752115441776,0.25966371,670.37,669.81,1.51952006]
[1752115442074,0.25966371,670.37,669.82,1.51952006]
[1752115442279,0.25966371,670.37,669.78,2.541]
[1752115442478,0.25966371,670.37,669.79,1.51914783]
[1752115442675,0.25966371,670.37,669.8,1.51902375]
[1752115442879,0.25966371,670.37,669.81,1.51902375]
[1752115443076,0.25966371,670.37,669.82,1.51902375]
[1752115443280,0.25966371,670.37,669.78,2.541]
[1752115443480,0.25966371,670.37,669.79,1.51895796]
[1752115443681,0.25966371,670.37,669.8,1.51895796]
[1752115443880,0.25966371,670.37,669.81,1.51895796]
[1752115444079,0.25966371,670.37,669.82,1.51895796]
[1752115444283,0.25966371,670.37,669.78,2.541]
[1752115444481,0.25966371,670.37,669.79,1.51890978]
[1752115444680,0.25966371,670.37,669.8,1.51890978]
[1752115444980,0.25966371,670.37,669.81,1.51890978]
[1752115445178,0.25966371,670.37,669.82,1.51890978]
[1752115445377,0.25966371,670.37,669.78,2.541]
[1752115445581,0.25966371,670.37,669.79,1.51887451]
[1752115445779,0.25966371,670.37,669.8,1.51887451]
[1752115446079,0.25966371,670.37,669.81,1.51887451]
[1752115446378,0.25966371,670.37,669.82,1.51887451]
[1752115446582,0.25966371,670.37,669.83,1.51883483]
[1752115446780,0.25966371,670.37,669.57,1.67012333]
[1752115447080,0.25966371,670.37,669.58,1.51883505]
[1752115447383,0.25966371,670.37,669.59,1.51883505]
[1752115447578,0.25966371,670.37,669.6,1.51883505]
[1752115447781,0.25966371,670.37,669.61,1.51883505]
[1752115447981,0.25966371,670.37,669.62,1.51883505]
[1752115448182,0.25966371,670.37,669.63,1.51883505]
[1752115448382,0.25966371,670.37,669.64,1.51883505]
[1752115448581,0.25966371,670.37,669.65,1.51883505]
[1752115448780,0.25966371,670.37,669.66,1.51883505]
[1752115449080,0.25966371,670.37,669.67,1.51883505]
[1752115449381,0.25966371,670.37,669.68,1.51883505]
[1752115449585,0.25966371,670.37,669.69,1.51883505]
[1752115449786,0.25966371,670.37,669.7,1.51883505]
[1752115449985,0.25966371,670.37,669.71,1.51883505]
[1752115450186,0.25966371,670.37,669.72,1.51883505]
[1752115450483,0.25966371,670.37,669.73,1.51883505]
[1752115450681,0.25966371,670.37,669.74,1.51883505]
[1752115450881,0.25966371,670.37,669.75,1.51883505]
[1752115451085,0.25966371,670.37,669.76,1.51883505]
[1752115451382,0.25966371,670.37,669.77,1.51883505]
[1752115451583,0.25966371,670.37,669.78,1.51883505]
[1752115451883,0.25966371,670.37,669.79,1.51883505]
[1752115452081,0.25966371,670.37,669.8,1.51883505]
[1752115452280,0.25966371,670.37,669.81,1.51883505]
[1752115452480,0.25966371,670.37,669.82,1.51883505]
[1752115452687,0.25966371,670.37,669.83,1.51883505]
[1752115452883,0.25966371,670.37,669.84,1.51883505]
[1752115453083,0.25966371,670.37,669.85,1.51883505]
[1752115453283,0.25966371,670.37,669.86,1.51883505]
[1752115453484,0.25966371,670.37,669.87,1.51883505]
[1752115453688,0.25966371,670.37,669.88,1.51883505]
[1752115453985,0.25966371,670.37,669.89,1.51883505]
[1752115454189,0.25966371,670.37,669.9,1.51883505]
[1752115454488,0.25966371,670.37,669.91,1.51883505]
[1752115454789,0.25966371,670.37,669.69,2.297]
[1752115454990,0.25966371,670.37,669.7,1.51824153]
[1752115455288,0.25966371,670.37,669.71,1.51824153]
[1752115455488,0.25966371,670.37,669.72,1.51824153]
[1752115455789,0.25966371,670.37,669.73,1.51824153]
[1752115456088,0.25966371,670.37,669.74,1.51824153]
[1752115456288,0.25966371,670.37,669.75,1.51824153]
[1752115456488,0.25966371,670.37,669.76,1.51824153]
[1752115456689,0.25966371,670.37,669.77,1.51824153]
[1752115456884,0.25966371,670.37,669.78,1.51824153]
[1752115457088,0.25966371,670.37,669.79,1.51824153]
[1752115457385,0.25966371,670.37,669.8,1.51824153]
[1752115457583,0.25966371,670.37,669.81,1.51824153]
[1752115457789,0.25966371,670.37,669.82,1.51824153]
[1752115457984,0.25966371,670.37,669.83,1.51824153]
[1752115458184,0.25966371,670.37,669.84,1.51824153]
[1752115458384,0.25966371,670.37,669.85,1.51824153]
[1752115458688,0.25966371,670.37,669.86,1.51824153]
[1752115458890,0.25966371,670.37,669.87,1.51824153]
[1752115459086,0.25966371,670.37,669.88,1.51824153]
[1752115459388,0.25966371,670.37,669.89,1.51824153]
[1752115459685,0.25966371,670.37,669.9,1.51824153]
[1752115459887,0.25966371,670.37,669.91,1.51824153]
[1752115460085,0.25966371,670.37,669.69,2.297]
[1752115460289,0.25966371,670.37,669.7,1.51888984]
[1752115460486,0.25966371,670.37,669.71,1.51888984]
[1752115460788,0.25966371,670.37,669.72,1.51888984]
[1752115460990,0.25966371,670.37,669.73,1.51888984]
[1752115461184,0.25966371,670.37,669.74,1.51888984]
[1752115461386,0.25966371,670.37,669.75,1.51888984]
[1752115461591,0.25966371,670.37,669.76,1.51888984]
[1752115461890,0.25966371,670.37,669.77,1.51888984]
[1752115462184,0.25966371,670.37,669.69,2.297]
[1752115462185,0.25966371,670.37,669.78,1.51888984]
[1752115462390,0.25966371,670.37,669.79,1.51888984]
[1752115462688,0.25966371,670.37,669.69,2.297]
[1752115462892,0.25966371,670.37,669.7,1.5190005]
[1752115463187,0.25966371,670.37,669.71,1.5190005]
[1752115463392,0.25966371,670.37,669.72,1.5190005]
[1752115463693,0.25966371,670.37,669.73,1.5190005]
[1752115463891,0.25966371,670.37,669.74,1.5190005]
[1752115464091,0.25966371,670.37,669.75,1.5190005]
[1752115464386,0.25966371,670.37,669.76,1.5190005]
[1752115464589,0.25966371,670.37,669.77,1.5190005]
[1752115464788,0.25966371,670.37,669.78,1.5190005]
[1752115464988,0.25966371,670.37,669.79,1.5190005]
[1752115465287,0.25966371,670.37,669.8,1.5190005]
[1752115465489,0.25966371,670.37,669.81,1.5190005]
[1752115465692,0.25966371,670.37,669.82,1.5190005]
[1752115465990,0.25966371,670.37,669.83,1.5190005]
[1752115466191,0.25966371,670.37,669.84,1.5190005]
[1752115466393,0.25966371,670.37,669.85,1.5190005]
[1752115466590,0.25966371,670.37,669.86,1.5190005]
[1752115466792,0.25966371,670.37,669.87,1.5190005]
[1752115466997,0.25966371,670.37,669.88,1.5190005]
[1752115467192,0.25966371,670.37,669.89,1.5190005]
[1752115467397,0.25966371,670.37,669.9,1.5190005]
[1752115467596,0.25966371,670.37,669.91,1.5190005]
[1752115467793,0.25966371,670.37,669.92,1.5190005]
[1752115467990,0.25966371,670.37,669.93,1.5190005]
[1752115468296,0.25966371,670.37,669.69,2.297]
[1752115468497,0.25966371,670.37,669.7,1.51980142]
[1752115468695,0.25966371,670.37,669.71,1.51980142]
[1752115468994,0.25966371,670.37,669.72,1.51980142]
[1752115469292,0.25966371,670.37,669.73,1.51980142]
[1752115469496,0.25966371,670.37,669.74,1.51980142]
[1752115469695,0.25966371,670.37,669.75,1.51980142]
[1752115469894,0.25966371,670.37,669.76,1.51980142]
[1752115470198,0.25966371,670.37,669.77,1.51980142]
[1752115470494,0.25966371,670.37,669.78,1.51980142]
[1752115470695,0.25966371,670.37,669.79,1.51980142]
[1752115470893,0.25966371,670.37,669.8,1.51980142]
[1752115471098,0.25966371,670.37,669.81,1.51980142]
[1752115471297,0.25966371,670.37,669.82,1.51980142]
[1752115471495,0.25966371,670.37,669.83,1.51980142]
[1752115471695,0.25966371,670.37,669.84,1.51980142]
[1752115471897,0.25966371,670.37,669.85,1.51980142]
[1752115472101,0.25966371,670.37,669.86,1.51980142]
[1752115472300,0.25966371,670.37,669.87,1.51980142]
[1752115472502,0.25966371,670.37,669.88,1.51980142]
[1752115472802,0.25966371,670.37,669.89,1.51980142]
[1752115472996,0.25966371,670.37,669.9,1.51980142]
[1752115473299,0.25966371,670.37,669.91,1.51980142]
[1752115473498,0.25966371,670.37,669.92,1.51980142]
[1752115473797,0.25966371,670.37,669.93,1.51980142]
[1752115473999,0.25966371,670.37,669.94,1.51980142]
[1752115474199,0.25966371,670.37,669.95,1.51980142]
[1752115474398,0.25966371,670.37,669.96,1.51980142]
[1752115474605,0.25966371,670.37,669.69,2.297]
[1752115474899,0.25966371,670.37,669.7,1.52014736]
[1752115475103,0.25966371,670.37,669.71,1.52014736]
[1752115475303,0.25966371,670.37,669.72,1.52014736]
[1752115475504,0.25966371,670.37,669.73,1.52014736]
[1752115475702,0.25966371,670.37,669.74,1.52014736]
[1752115475902,0.25966371,670.37,669.75,1.52014736]
[1752115476099,0.25966371,670.37,669.76,1.52014736]
[1752115476304,0.25966371,670.37,669.77,1.52014736]
[1752115476599,0.25966371,670.37,669.78,1.52014736]
[1752115476805,0.25966371,670.37,669.79,1.52014736]
[1752115477099,0.25966371,670.37,669.8,1.52014736]
[1752115477404,0.25966371,670.37,669.81,1.52014736]
[1752115477704,0.25966371,670.37,669.82,1.52014736]
[1752115477905,0.25966371,670.37,669.83,1.52014736]
[1752115478105,0.25966371,670.37,669.84,1.52014736]
[1752115478304,0.25966371,670.37,669.85,1.52014736]
[1752115478605,0.25966371,670.37,669.86,1.52014736]
[1752115478805,0.25966371,670.37,669.87,1.52014736]
[1752115479007,0.25966371,670.37,669.88,1.52014736]
[1752115479206,0.25966371,670.37,669.89,1.52014736]
[1752115479406,0.25966371,670.37,669.9,1.52014736]
[1752115479603,0.25966371,670.37,669.91,1.52014736]
[1752115479803,0.25966371,670.37,669.92,1.52014736]
[1752115480003,0.25966371,670.37,669.93,1.52014736]
[1752115480206,0.25966371,670.37,669.94,1.52014736]
[1752115480507,0.25966371,670.37,669.95,1.52014736]
[1752115480702,0.25966371,670.37,669.96,1.52014736]
[1752115480907,0.25966371,670.37,669.97,1.52014736]
[1752115481103,0.25966371,670.37,669.98,1.52014736]
[1752115481308,0.25966371,670.37,669.69,3.96753986]
[1752115481506,0.25966371,670.37,669.7,1.52226923]
[1752115481804,0.25966371,670.37,669.71,1.52226923]
[1752115482005,0.25966371,670.37,669.72,1.52226923]
[1752115482309,0.25966371,670.37,669.73,1.52226923]
[1752115482505,0.25966371,670.37,669.74,1.52226923]
[1752115482809,0.25966371,670.37,669.75,1.52226923]
[1752115483010,0.25966371,670.37,669.76,1.52226923]
[1752115483205,0.25966371,670.37,669.77,1.52226923]
[1752115483409,0.25966371,670.37,669.78,1.52226923]
[1752115483709,0.25966371,670.37,669.79,1.52226923]
[1752115483906,0.25966371,670.37,669.8,1.52226923]
[1752115484106,0.25966371,670.37,669.81,1.52226923]
[1752115484305,0.25966371,670.37,669.82,1.52226923]
[1752115484508,0.25966371,670.37,669.83,1.52226923]
[1752115484709,0.25966371,670.37,669.84,1.52226923]
[1752115485010,0.25966371,670.37,669.85,1.52226923]
[1752115485210,0.25966371,670.37,669.86,1.52226923]
[1752115485509,0.25966371,670.37,669.87,1.52226923]
[1752115485708,0.25966371,670.37,669.88,1.52226923]
[1752115485907,0.25966371,670.37,669.89,1.52226923]
[1752115486110,0.25966371,670.37,669.9,1.52226923]
[1752115486308,0.25966371,670.37,669.91,1.52226923]
[1752115486507,0.25966371,670.37,669.92,1.52226923]
[1752115486712,0.25966371,670.37,669.93,1.52226923]
[1752115487008,0.25966371,670.37,669.94,1.52226923]
[1752115487207,0.25966371,670.37,669.95,1.52226923]
[1752115487412,0.25966371,670.37,669.96,1.52226923]
[1752115487608,0.25966371,670.37,669.97,1.52226923]
[1752115487813,0.25966371,670.37,669.98,1.52226923]
[1752115488013,0.25966371,670.37,669.74,1.67053986]
[1752115488213,0.25966371,670.37,669.75,1.52200957]
[1752115488410,0.25966371,670.37,669.76,1.52200957]
[1752115488610,0.25966371,670.37,669.77,1.52200957]
[1752115488812,0.25966371,670.37,669.74,1.67053986]
[1752115488813,0.25966371,670.37,669.78,1.52200957]
[1752115489011,0.25966371,670.37,669.79,1.52200957]
[1752115489213,0.25966371,670.37,669.8,1.52200957]